fUSD/lending_fUSD_20240505
["ID","MTS","AMOUNT","RATE_DAILY","PERIOD"]
[326461405,1714939868313,-1268.18,0.0003041,5]
[326461406,1714939868322,-500.0,0.0003041,5]
[326461407,1714939868331,-500.0,0.0003041,5]
[326461408,1714939868340,-500.0,0.0003041,5]
[326461409,1714939868349,-503.21091797,0.0003041,5]
[326461410,1714939868359,-1070.48,0.0003041,5]
[326461411,1714939868368,-500.0,0.0003041,5]
[326461412,1714939868378,-1830.63,0.0003041,5]
[326461413,1714939868387,-786.6,0.0003041,5]
[326461414,1714939868396,-2669.12,0.0003041,5]
[326461415,1714939868405,-500.0,0.0003041,5]
[326461416,1714939868415,-803.83,0.0003041,5]
[326461417,1714939868424,-671.28,0.0003041,5]
[326461418,1714939868433,-2327.77,0.0003041,5]
[326461419,1714939868442,-1039.96,0.0003041,5]
[326461420,1714939868461,-500.0,0.0003041,5]
[326461421,1714939868480,-869.77,0.0003041,5]
[326461422,1714939868497,-2324.64,0.0003041,5]
[326461423,1714939868516,-1525.41,0.0003041,5]
[326461424,1714939868536,-1378.33,0.0003041,5]
[326461425,1714939868553,-2278.88,0.0003041,5]
[326461426,1714939868571,-500.0,0.0003041,5]
[326461427,1714939868586,-500.0,0.0003041,5]
[326461428,1714939868602,-514.86,0.0003041,5]
[326461429,1714939868619,-500.0,0.0003041,5]
[326461430,1714939868639,-564.09088235,0.0003041,5]
[326461431,1714939868651,-864.52,0.0003041,5]
[326461432,1714939868666,-818.24,0.0003041,5]
[326461433,1714939868681,-1661.98,0.0003041,5]
[326461434,1714939868696,-1592.78,0.0003041,5]
[326461435,1714939868711,-734.35,0.0003041,5]
[326461436,1714939868725,-1192.88,0.0003041,5]
[326461437,1714939868739,-20000.0,0.0003041,2]
[326461438,1714939868753,-1029.09,0.0003041,5]
[326461439,1714939868769,-648.93654396,0.0003041,5]
[326461440,1714939868783,-553.31,0.0003041,5]
[326461441,1714939868797,-547.95,0.0003041,5]
[326461442,1714939868816,-2785.72,0.0003041,5]
[326461443,1714939868831,-687.45,0.0003041,5]
[326461444,1714939868844,-899.43,0.0003041,5]
[326461445,1714939868859,-500.0,0.0003041,5]
[326461446,1714939868872,-500.0,0.0003041,5]
[326461447,1714939868886,-1109.14,0.0003041,5]
[326461448,1714939868900,-1816.85,0.0003041,5]
[326461449,1714939868914,-1673.61,0.0003041,5]
[326461450,1714939868928,-1772.96,0.0003041,5]
[326461451,1714939868943,-670.55,0.0003041,5]
[326461452,1714939868957,-1378.58,0.0003041,5]
[326461453,1714939868971,-1379.54,0.0003041,5]
[326461454,1714939868985,-705.63,0.0003041,5]
[326461455,1714939868999,-500.0,0.0003041,5]
[326461456,1714939869013,-782.88,0.0003041,5]
[326461457,1714939869028,-5000.0,0.0003041,5]
[326461458,1714939869043,-1912.93,0.0003041,5]
[326461459,1714939869056,-1015.84,0.0003041,5]
[326461460,1714939869070,-578.0,0.0003041,5]
[326461461,1714939869086,-151.0,0.0003041,7]
[326461462,1714939869100,-151.0,0.0003041,7]
[326461463,1714939869115,-782.08,0.0003041,5]
[326461464,1714939869130,-527.02,0.0003041,5]
[326461465,1714939869145,-2543.61,0.0003041,5]
[326461466,1714939869159,-500.0,0.0003041,5]
[326461467,1714939869173,-1431.08,0.0003041,5]
[326461468,1714939869188,-638.56,0.0003041,5]
[326461469,1714939869205,-1470.88,0.0003041,5]
[326461470,1714939869220,-171.372256,0.0003041,7]
[326461471,1714939869234,-171.372256,0.0003041,7]
[326461472,1714939869249,-1322.07,0.0003041,5]
[326461473,1714939869263,-702.47,0.0003041,5]
[326461474,1714939869278,-1738.55,0.0003041,5]
[326461475,1714939869293,-1058.25,0.0003041,5]
[326461476,1714939869309,-500.0,0.0003041,5]
[326461477,1714939869323,-565.97,0.0003041,5]
[326461478,1714939869338,-171.372256,0.0003041,7]
[326461479,1714939869353,-171.372252,0.0003041,7]
[326461480,1714939869368,-500.0,0.0003041,5]
[326461481,1714939869382,-762.24,0.0003041,5]
[326461482,1714939869397,-1631.73,0.0003041,5]
[326461483,1714939869412,-1340.8,0.0003041,5]
[326461484,1714939869426,-2697.92,0.0003041,5]
[326461485,1714939869441,-648.37,0.0003041,5]
[326461486,1714939869455,-679.55,0.0003041,5]
[326461487,1714939869470,-816.75,0.0003041,5]
[326461488,1714939869484,-575.34,0.0003041,5]
[326461489,1714939869499,-500.0,0.0003041,5]
[326461490,1714939869514,-1108.53,0.0003041,5]
[326461491,1714939869528,-2110.68,0.0003041,5]
[326461492,1714939869543,-500.0,0.0003041,5]
[326461493,1714939869558,-3291.68,0.0003041,5]
[326461494,1714939869573,-1582.39,0.0003041,5]
[326461495,1714939869587,-1153.4,0.0003041,5]
[326461496,1714939869601,-500.0,0.0003041,5]
[326461497,1714939869616,-500.0,0.0003041,5]
[326461498,1714939869630,-500.0,0.0003041,5]
[326461499,1714939869645,-1288.2,0.0003041,5]
[326461500,1714939869659,-920.23,0.0003041,5]
[326461501,1714939869673,-500.0,0.0003041,5]
[326461502,1714939869687,-2601.39,0.0003041,5]
[326461503,1714939869702,-1948.74,0.0003041,5]
[326461504,1714939869717,-628.64,0.0003041,5]
[326461505,1714939869731,-500.0,0.0003041,5]
[326461506,1714939869745,-1605.12,0.0003041,5]
[326461507,1714939869759,-1500.0,0.0003041,5]
[326461508,1714939869774,-500.0,0.0003041,5]
[326461509,1714939869789,-791.15,0.0003041,5]
[326461510,1714939869804,-761.65,0.0003041,5]
[326461511,1714939869818,-527.88,0.0003041,5]
[326461512,1714939869832,-500.0,0.0003041,5]
[326461513,1714939869846,-543.55,0.0003041,5]
[326461514,1714939869861,-500.0,0.0003041,5]
[326461515,1714939869875,-706.67,0.0003041,5]
[326461516,1714939869889,-3729.52,0.0003041,5]
[326461517,1714939869904,-644.03,0.0003041,5]
[326461518,1714939869918,-1163.71,0.0003041,5]
[326461519,1714939869929,-864.98,0.0003041,5]
[326461520,1714939869939,-1442.96,0.0003041,5]
[326461521,1714939869948,-1277.38,0.0003041,5]
[326461522,1714939869957,-500.0,0.0003041,5]
[326461523,1714939869966,-871.54,0.0003041,5]
[326461524,1714939869976,-812.74,0.0003041,5]
[326461525,1714939869985,-500.0,0.0003041,5]
[326461526,1714939869994,-943.73,0.0003041,5]
[326461527,1714939870003,-500.0,0.0003041,5]
[326461528,1714939870012,-500.0,0.0003041,5]
[326461529,1714939870023,-500.0,0.0003041,5]
[326461530,1714939870033,-1409.78,0.0003041,5]
[326461531,1714939870042,-608.7,0.0003041,5]
[326461532,1714939870051,-346.39744922,0.0003041,5]
[326461533,1714939870060,-500.0,0.0003041,5]
[326461534,1714939870070,-500.0,0.0003041,5]
[326461535,1714939870080,-770.34,0.0003041,5]
[326461536,1714939870089,-2013.03,0.0003041,5]
[326461537,1714939870098,-678.81,0.0003041,5]
[326461538,1714939870108,-1313.57,0.0003041,5]
[326461539,1714939870117,-2257.08,0.0003041,5]
[326461540,1714939870127,-812.54,0.0003041,5]
[326461541,1714939870136,-500.0,0.0003041,5]
[326461542,1714939870145,-581.54,0.0003041,5]
[326461543,1714939870154,-500.0,0.0003041,5]
[326461544,1714939870164,-1192.74,0.0003041,5]
[326461545,1714939870173,-1072.03,0.0003041,5]
[326461546,1714939870183,-880.8,0.0003041,5]
[326461547,1714939870193,-500.0,0.0003041,5]
[326461548,1714939870203,-500.0,0.0003041,5]
[326461549,1714939870628,-500.0,0.0003041,5]
[326461550,1714939870649,-1507.96,0.0003041,5]
[326461551,1714939870676,-500.0,0.0003041,5]
[326461552,1714939870687,-1677.02,0.0003041,5]
[326461553,1714939870696,-500.0,0.0003041,5]
[326461554,1714939870705,-500.0,0.0003041,5]
[326461555,1714939870714,-1310.8,0.0003041,5]
[326461556,1714939870724,-861.02,0.0003041,5]
[326461557,1714939870733,-1434.52,0.0003041,5]
[326461558,1714939870742,-1278.0,0.0003041,5]
[326461559,1714939870751,-502.62761051,0.0003041,5]
[326461560,1714939870760,-1309.71,0.0003041,5]
[326461561,1714939870770,-3093.85,0.0003041,2]
[326461562,1714939870779,-555.82,0.0003041,5]
[326461563,1714939870787,-758.19,0.0003041,5]
[326461564,1714939870796,-500.0,0.0003041,5]
[326461565,1714939870806,-575.04117592,0.0003041,5]
[326461566,1714939870815,-628.5,0.0003041,5]
[326461567,1714939870823,-683.82,0.0003041,5]
[326461568,1714939870832,-1883.01,0.0003041,5]
[326461569,1714939870841,-790.56,0.0003041,5]
[326461570,1714939870851,-1509.6,0.0003041,5]
[326461571,1714939870860,-500.0,0.0003041,5]
[326461572,1714939870869,-500.0,0.0003041,5]
[326461573,1714939870878,-500.0,0.0003041,5]
[326461574,1714939870887,-595.36,0.0003041,5]
[326461575,1714939870896,-683.58,0.0003041,5]
[326461576,1714939870905,-2203.48,0.0003041,5]
[326461577,1714939870914,-895.0,0.0003041,5]
[326461578,1714939870923,-500.0,0.0003041,5]
[326461579,1714939870932,-2817.08,0.0003041,5]
[326461580,1714939870942,-1900.36,0.0003041,5]
[326461581,1714939870951,-500.0,0.0003041,5]
[326461582,1714939870960,-500.0,0.0003041,5]
[326461583,1714939870969,-500.0,0.0003041,5]
[326461584,1714939870978,-1468.14,0.0003041,5]
[326461585,1714939870987,-500.0,0.0003041,5]
[326461586,1714939870996,-879.47,0.0003041,5]
[326461587,1714939871005,-516.77050557,0.0003041,5]
[326461588,1714939871015,-500.0,0.0003041,5]
[326461589,1714939871024,-624.67,0.0003041,5]
[326461590,1714939871034,-1257.45,0.0003041,5]
[326461591,1714939871043,-500.0,0.0003041,5]
[326461592,1714939871053,-604.76,0.0003041,5]
[326461593,1714939871062,-910.99,0.0003041,5]
[326461594,1714939871071,-916.71,0.0003041,5]
[326461595,1714939871080,-1177.77,0.0003041,5]
[326461596,1714939871089,-635.79,0.0003041,5]
[326461597,1714939871098,-5000.0,0.0003041,5]
[326461598,1714939871107,-882.44,0.0003041,5]
[326461599,1714939871116,-500.0,0.0003041,5]
[326461600,1714939871125,-500.0,0.0003041,5]
[326461601,1714939871134,-509.31,0.0003041,5]
[326461602,1714939871143,-500.0,0.0003041,2]
[326461603,1714939871152,-1007.46,0.0003041,5]
[326461604,1714939871161,-500.0,0.0003041,5]
[326461605,1714939871170,-1274.91,0.0003041,5]
[326461606,1714939871179,-500.0,0.0003041,5]
[326461607,1714939871188,-500.0,0.0003041,5]
[326461608,1714939871197,-500.0,0.0003041,5]
[326461609,1714939871213,-855.8,0.0003041,5]
[326461610,1714939871222,-1619.32,0.0003041,5]
[326461611,1714939871232,-919.75,0.0003041,5]
[326461612,1714939871243,-926.49,0.0003041,5]
[326461613,1714939871252,-500.0,0.0003041,5]
[326461614,1714939871262,-500.0,0.0003041,5]
[326461615,1714939871272,-1975.56,0.0003041,5]
[326461616,1714939871283,-1353.37,0.0003041,5]
[326461617,1714939871292,-885.93,0.0003041,5]
[326461618,1714939871301,-500.0,0.0003041,5]
[326461619,1714939871310,-500.0,0.0003041,5]
[326461620,1714939871319,-151.0,0.0003041,7]
[326461621,1714939871329,-151.0,0.0003041,7]
[326461622,1714939871338,-2904.21,0.0003041,5]
[326461623,1714939871347,-500.0,0.0003041,5]
[326461624,1714939871356,-500.0,0.0003041,5]
[326461625,1714939871365,-1101.38,0.0003041,5]
[326461626,1714939871375,-551.87078371,0.0003041,5]
[326461627,1714939871385,-1317.72,0.0003041,5]
[326461628,1714939871395,-259.699244,0.0003041,7]
[326461629,1714939871404,-500.0,0.0003041,5]
[326461630,1714939871414,-1885.36,0.0003041,5]
[326461631,1714939871423,-1565.6,0.0003041,5]
[326461632,1714939871432,-1390.92,0.0003041,5]
[326461633,1714939871441,-500.0,0.0003041,5]
[326461634,1714939871451,-1976.17,0.0003041,5]
[326461635,1714939871459,-565.58,0.0003041,5]
[326461636,1714939871468,-521.32,0.0003041,5]
[326461637,1714939871477,-500.0,0.0003041,5]
[326461638,1714939871487,-56.85647417,0.0003041,5]
[326461639,1714939873745,-151.0,0.00013,2]
[326461640,1714939873754,-150.97,0.00014,2]
[326461641,1714939873763,-150.97,0.00014,2]
[326461642,1714939873775,-150.97,0.00014,2]
[326461643,1714939873784,-150.97,0.00014,2]
[326461644,1714939873793,-150.97,0.00014,2]
[326461645,1714939873801,-150.97,0.00014,2]
[326461646,1714939873810,-150.97,0.00014,2]
[326461647,1714939873819,-150.97,0.00014,2]
[326461648,1714939873828,-150.97,0.00014,2]
[326461649,1714939873837,-150.97,0.00014,2]
[326461650,1714939873846,-150.97,0.00014,2]
[326461651,1714939873855,-150.97,0.00014,2]
[326461652,1714939873863,-150.97,0.00014,2]
[326461653,1714939873872,-150.97,0.00014,2]
[326461654,1714939873882,-150.97,0.00014,2]
[326461655,1714939873890,-150.97,0.00014,2]
[326461656,1714939873899,-150.97,0.00014,2]
[326461657,1714939873909,-150.97,0.00014,2]
[326461658,1714939873918,-150.97,0.00014,2]
[326461659,1714939873927,-150.97,0.00014,2]
[326461660,1714939873936,-150.97,0.00014,2]
[326461661,1714939873946,-150.97,0.00014,2]
[326461662,1714939873955,-150.97,0.00014,2]
[326461663,1714939873964,-150.97,0.00014,2]
[326461664,1714939873973,-150.97,0.00014,2]
[326461665,1714939873982,-150.97,0.00014,2]
[326461666,1714939873991,-150.97,0.00014,2]
[326461667,1714939874001,-150.97,0.00014,2]
[326461668,1714939874010,-244.629602,0.00027945,7]
[326461669,1714939874021,-1039.34,0.00028767,2]
[326461670,1714939874030,-1039.34,0.00028767,2]
[326461671,1714939874039,-1039.34,0.00028767,2]
[326461672,1714939874048,-1039.34,0.00028767,2]
[326461673,1714939874058,-1039.34,0.00028767,2]
[326461674,1714939874067,-1039.34,0.00028767,2]
[326461675,1714939874075,-1039.34,0.00028767,2]
[326461676,1714939874085,-1039.34,0.00028767,2]
[326461677,1714939874094,-1039.34,0.00028767,2]
[326461678,1714939874104,-153.67374815,0.00029,2]
[326461679,1714939874113,-153.67374815,0.00029,2]
[326461680,1714939874122,-153.67374815,0.00029,2]
[326461681,1714939874131,-153.67374815,0.00029,2]
[326461682,1714939874140,-153.67374815,0.00029,2]
[326461683,1714939874149,-153.67374815,0.00029,2]
[326461684,1714939874158,-153.67374815,0.00029,2]
[326461685,1714939874168,-153.67374815,0.00029,2]
[326461686,1714939874178,-153.67374815,0.00029,2]
[326461687,1714939874187,-153.67374815,0.00029,2]
[326461688,1714939874197,-153.67374815,0.00029,2]
[326461689,1714939874209,-153.67374815,0.00029,2]
[326461690,1714939874218,-153.67374815,0.00029,2]
[326461691,1714939874228,-153.67374815,0.00029,2]
[326461692,1714939874238,-153.67374815,0.00029,2]
[326461693,1714939874248,-153.67374815,0.00029,2]
[326461694,1714939874258,-153.67374815,0.00029,2]
[326461695,1714939874267,-969.2,0.00030136,4]
[326461696,1714939874277,-500.0,0.00030136,2]
[326461697,1714939874290,-443.14352583,0.0003041,5]
[326461698,1714939874299,-1485.83,0.0003041,5]
[326461699,1714939874311,-1602.19,0.0003041,5]
[326461700,1714939874320,-988.8,0.0003041,5]
[326461701,1714939874329,-500.0,0.0003041,5]
[326461702,1714939874339,-904.84,0.0003041,5]
[326461703,1714939874348,-1010.87,0.0003041,5]
[326461704,1714939874357,-500.0,0.0003041,5]
[326461705,1714939874367,-500.0,0.0003041,5]
[326461706,1714939874377,-796.38,0.0003041,5]
[326461707,1714939874386,-361.43195186,0.0003041,5]
[326461708,1714939874395,-1471.83,0.0003041,5]
[326461709,1714939874405,-500.0,0.0003041,5]
[326461710,1714939874415,-2384.51,0.0003041,5]
[326461711,1714939874424,-1229.24,0.0003041,5]
[326461712,1714939874433,-1313.14,0.0003041,5]
[326461713,1714939874443,-766.3353389,0.0003041,5]
[326461714,1714939874793,-253.65525635,0.00012899,2]
[326461715,1714939874803,-305.34232476,0.00012899,2]
[326461716,1714939874812,-150.97,0.00014,2]
[326461717,1714939874821,-150.97,0.00014,2]
[326461718,1714939874830,-1039.34,0.00028767,2]
[326461719,1714939874839,-153.67374815,0.00029,2]
[326461720,1714939874849,-153.67374815,0.00029,2]
[326461721,1714939874858,-1084.4446611,0.0003041,5]
[326461722,1714939874868,-1418.23,0.0003041,5]
[326461723,1714939874877,-902.26,0.0003041,5]
[326461724,1714939874886,-2053.76,0.0003041,5]
[326461725,1714939874896,-3255.39,0.0003041,5]
[326461726,1714939874905,-500.0,0.0003041,5]
[326461727,1714939874915,-624.8,0.0003041,5]
[326461728,1714939874924,-151.78497284,0.0003041,5]
[326461729,1714939874934,-500.0,0.0003041,5]
[326461730,1714939874944,-1208.12,0.0003041,5]
[326461731,1714939874953,-2671.52,0.0003041,5]
[326461732,1714939874962,-504.7638047,0.0003041,5]
[326461733,1714939874971,-599.02,0.0003041,5]
[326461734,1714939874981,-500.0,0.0003041,5]
[326461735,1714939874990,-1395.03,0.0003041,5]
[326461736,1714939874999,-151.0,0.0003041,7]
[326461737,1714939875008,-184.94460655,0.0003041,5]
[326461738,1714939875020,-151.0,0.0003041,7]
[326461739,1714939875029,-151.0,0.0003041,7]
[326461740,1714939875038,-1629.22,0.0003041,5]
[326461741,1714939875047,-151.0,0.0003041,7]
[326461742,1714939875056,-709.38,0.0003041,5]
[326461743,1714939875065,-3415.55,0.0003041,5]
[326461744,1714939875074,-754.17,0.0003041,5]
[326461745,1714939875083,-500.0,0.0003041,5]
[326461746,1714939875094,-278.13,0.0003041,5]
[326461747,1714939875103,-500.0,0.0003041,5]
[326461748,1714939875112,-500.0,0.0003041,5]
[326461749,1714939875122,-225.253806,0.0003041,7]
[326461750,1714939875131,-500.0,0.0003041,5]
[326461751,1714939875140,-500.0,0.0003041,5]
[326461752,1714939875149,-500.0,0.0003041,5]
[326461753,1714939875158,-500.0,0.0003041,5]
[326461754,1714939875167,-500.0,0.0003041,5]
[326461755,1714939875177,-500.0,0.0003041,5]
[326461756,1714939875186,-1145.17,0.0003041,5]
[326461757,1714939875195,-1886.54,0.0003041,5]
[326461758,1714939875209,-543.64,0.0003041,5]
[326461759,1714939875218,-500.0,0.0003041,5]
[326461760,1714939875227,-642.66,0.0003041,5]
[326461761,1714939875236,-1316.4,0.0003041,5]
[326461762,1714939875246,-500.0,0.0003041,5]
[326461763,1714939875255,-500.0,0.0003041,5]
[326461764,1714939875265,-855.02,0.0003041,5]
[326461765,1714939875279,-1513.55,0.0003041,5]
[326461766,1714939875287,-1616.45,0.0003041,5]
[326461767,1714939875296,-285.04402,0.0003041,7]
[326461768,1714939875305,-285.04402,0.0003041,7]
[326461769,1714939875314,-1594.72,0.0003041,5]
[326461770,1714939875322,-1285.76,0.0003041,5]
[326461771,1714939875331,-3512.73,0.0003041,5]
[326461772,1714939875341,-285.04402,0.0003041,7]
[326461773,1714939875351,-285.044012,0.0003041,7]
[326461774,1714939875360,-1402.87,0.0003041,5]
[326461775,1714939875370,-500.0,0.0003041,5]
[326461776,1714939875380,-912.25,0.0003041,5]
[326461777,1714939875389,-500.0,0.0003041,5]
[326461778,1714939875398,-672.96,0.0003041,5]
[326461779,1714939875407,-500.0,0.0003041,5]
[326461780,1714939875416,-1751.83,0.0003041,5]
[326461781,1714939875426,-500.0,0.0003041,5]
[326461782,1714939875435,-1500.04,0.0003041,5]
[326461783,1714939875444,-1277.9,0.0003041,5]
[326461784,1714939875453,-1505.13,0.0003041,5]
[326461785,1714939875463,-799.33,0.0003041,5]
[326461786,1714939875472,-500.0,0.0003041,5]
[326461787,1714939875481,-500.0,0.0003041,5]
[326461788,1714939875490,-652.23,0.0003041,5]
[326461789,1714939875499,-500.0,0.0003041,5]
[326461790,1714939875508,-1356.14,0.0003041,5]
[326461791,1714939875520,-500.0,0.0003041,5]
[326461792,1714939875529,-993.76,0.0003041,5]
[326461793,1714939875539,-2123.31,0.0003041,5]
[326461794,1714939875548,-3265.84,0.0003041,5]
[326461795,1714939875558,-515.99,0.0003041,5]
[326461796,1714939875567,-500.0,0.0003041,5]
[326461797,1714939875576,-500.0,0.0003041,5]
[326461798,1714939875586,-503.67816292,0.0003041,5]
[326461799,1714939875595,-664.69,0.0003041,5]
[326461800,1714939875605,-1849.04,0.0003041,5]
[326461801,1714939875614,-500.0,0.0003041,5]
[326461802,1714939875623,-500.0,0.0003041,5]
[326461803,1714939875633,-500.0,0.0003041,5]
[326461804,1714939875642,-588.95,0.0003041,5]
[326461805,1714939875651,-2276.76,0.0003041,5]
[326461806,1714939875660,-1168.69,0.0003041,5]
[326461807,1714939875670,-674.3,0.0003041,5]
[326461808,1714939875679,-500.0,0.0003041,5]
[326461809,1714939875688,-649.86451954,0.0003041,5]
[326461810,1714939875697,-1929.39,0.0003041,5]
[326461811,1714939875706,-500.0,0.0003041,5]
[326461812,1714939875716,-1254.7,0.0003041,5]
[326461813,1714939875725,-681.37,0.0003041,5]
[326461814,1714939875734,-647.43,0.0003041,5]
[326461815,1714939875743,-500.0,0.0003041,5]
[326461816,1714939875753,-1258.08,0.0003041,5]
[326461817,1714939875762,-1180.26,0.0003041,5]
[326461818,1714939875774,-653.89,0.0003041,5]
[326461819,1714939875782,-3196.14,0.0003041,5]
[326461820,1714939875792,-255.68214813,0.0003041,5]
[326461821,1714939875801,-765.71,0.0003041,5]
[326461822,1714939875810,-728.05,0.0003041,5]
[326461823,1714939875819,-641.34,0.0003041,5]
[326461824,1714939875828,-500.0,0.0003041,5]
[326461825,1714939875838,-575.31,0.0003041,5]
[326461826,1714939875847,-1011.66,0.0003041,5]
[326461827,1714939875856,-810.93,0.0003041,5]
[326461828,1714939875865,-500.0,0.0003041,5]
[326461829,1714939875874,-500.0,0.0003041,5]
[326461830,1714939875883,-500.0,0.0003041,5]
[326461831,1714939875892,-500.0,0.0003041,5]
[326461832,1714939875902,-726.45,0.0003041,5]
[326461833,1714939875911,-500.0,0.0003041,5]
[326461834,1714939875920,-450.0,0.0003041,7]
[326461835,1714939875929,-450.0,0.0003041,7]
[326461836,1714939875938,-1113.4,0.0003041,5]
[326461837,1714939875948,-1062.2,0.0003041,5]
[326461838,1714939875957,-562.72221366,0.0003041,5]
[326461839,1714939875966,-500.0,0.0003041,5]
[326461840,1714939875976,-500.0,0.0003041,5]
[326461841,1714939875985,-450.0,0.0003041,7]
[326461842,1714939875995,-569.01314526,0.0003041,5]
[326461843,1714939876004,-739.8,0.0003041,5]
[326461844,1714939876014,-950.88,0.0003041,5]
[326461845,1714939876025,-450.0,0.0003041,7]
[326461846,1714939876033,-500.0,0.0003041,5]
[326461847,1714939876043,-1113.44,0.0003041,5]
[326461848,1714939876051,-500.0,0.0003041,5]
[326461849,1714939876060,-1830.68,0.0003041,5]
[326461850,1714939876070,-500.0,0.0003041,5]
[326461851,1714939876079,-1450.14,0.0003041,5]
[326461852,1714939876089,-963.18,0.0003041,5]
[326461853,1714939876098,-836.64,0.0003041,5]
[326461854,1714939876108,-500.0,0.0003041,5]
[326461855,1714939876118,-1611.06,0.0003041,5]
[326461856,1714939876128,-725.62,0.0003041,5]
[326461857,1714939876137,-1456.93,0.0003041,5]
[326461858,1714939876147,-500.0,0.0003041,5]
[326461859,1714939876156,-300.0,0.0003041,5]
[326461860,1714939876165,-2144.94,0.0003041,5]
[326461861,1714939876174,-736.34,0.0003041,5]
[326461862,1714939876184,-2792.65,0.0003041,5]
[326461863,1714939876193,-500.0,0.0003041,5]
[326461864,1714939876204,-922.68,0.0003041,5]
[326461865,1714939876218,-500.0,0.0003041,5]
[326461866,1714939876227,-1421.32,0.0003041,5]
[326461867,1714939876237,-500.0,0.0003041,5]
[326461868,1714939876248,-647.1,0.0003041,5]
[326461869,1714939876257,-1293.93,0.0003041,5]
[326461870,1714939876266,-1500.34,0.0003041,5]
[326461871,1714939876277,-2026.33,0.0003041,5]
[326461872,1714939876287,-1465.22,0.0003041,2]
[326461873,1714939876296,-1684.28,0.0003041,5]
[326461874,1714939876306,-500.0,0.0003041,5]
[326461875,1714939876316,-500.0,0.0003041,5]
[326461876,1714939876326,-500.0,0.0003041,5]
[326461877,1714939876337,-1822.97,0.0003041,5]
[326461878,1714939876347,-658.77,0.0003041,5]
[326461879,1714939876356,-1176.22,0.0003041,5]
[326461880,1714939876366,-653.0,0.0003041,5]
[326461881,1714939876375,-2005.89,0.0003041,5]
[326461882,1714939876384,-986.38,0.0003041,5]
[326461883,1714939876394,-500.0,0.0003041,5]
[326461884,1714939876403,-500.0,0.0003041,5]
[326461885,1714939876412,-40148.36,0.0003041,5]
[326461886,1714939876421,-591.3,0.0003041,5]
[326461887,1714939876431,-490.82913492,0.0003041,5]
[326461888,1714939876440,-8623.29,0.0003041,5]
[326461889,1714939876450,-617.89,0.0003041,5]
[326461890,1714939876459,-500.0,0.0003041,5]
[326461891,1714939876469,-504.94,0.0003041,5]
[326461892,1714939876478,-1218.18,0.0003041,5]
[326461893,1714939876487,-660.41,0.0003041,5]
[326461894,1714939876496,-1724.68,0.0003041,5]
[326461895,1714939876506,-500.0,0.0003041,5]
[326461896,1714939876515,-500.0,0.0003041,5]
[326461897,1714939876526,-612.36,0.0003041,5]
[326461898,1714939876535,-733.53,0.0003041,5]
[326461899,1714939876544,-500.0,0.0003041,5]
[326461900,1714939876553,-682.54,0.0003041,5]
[326461901,1714939876562,-513.3,0.0003041,5]
[326461902,1714939876572,-500.0,0.0003041,5]
[326461903,1714939876581,-705.47,0.0003041,5]
[326461904,1714939876590,-581.84,0.0003041,5]